[Event "Pashayeva Memorial Rapid 2025"]
[Site "Baku"]
[Date "2025.03.03"]
[Round "4.1"]
[White "Salimova, Nurgyul"]
[Black "Fataliyeva, Ulviyya"]
[Result "1-0"]
[Annotator "TA"]
[ECO "E05"]
[WhiteElo "2404"]
[BlackElo "2381"]
[PlyCount "71"]
[EventDate "2025.03.01"]
[EventType "tourn"]
[EventCountry "AZE"]
[SourceTitle "playchess.com"]
[Source "ChessBase"]
[SourceQuality "1"]
[TimeControl "900+10"]

{[%evp 13,70,18,18,-1,-14,-4,-25,-17,-22,-19,-13,-14,0,-22,-25,-31,-10,-62,-59,-63,-25,-36,-47,-53,-33,-40,-15,-39,0,1,26,11,25,7,117,118,118,111,168,145,337,331,321,330,314,13,21,27,20,0,0,0,462,431,1719,1635,29992,29993,29999]} 1. d4 {[%emt 0:00:03]} Nf6 {[%emt 0:00:02]} 2. Nf3 {[%emt 0:00:12]} d5 {[%emt 0:00:01][%cal Bd7d5,Bd5c4][%mdl 32]} 3. c4 {[%emt 0:00:05]} e6 {[%emt 0:00:02]} 4. g3 {[%emt 0:00:04]} Be7 {[%emt 0:00:02]} 5. Bg2 {[%emt 0:00:02]} O-O {[%emt 0:00:01]} 6. O-O {[%emt 0:00:05]} dxc4 {[%emt 0:00:02]} 7. Qc2 {[%emt 0:00:29]} a6 {[%emt 0:00:01]} 8. Rd1 {[%emt 0:00:04][%cal Of3e5] E05: Open Catalan: 5 Nf3 Be7.} b5 {[%emt 0:00:31]} 9. Ne5 {[%emt 0:00:07]} Nd5 {[%emt 0:00:19]} 10. b3 {[%emt 0:00:07] White sacrificed a pawn. Black has an edge.} cxb3 {[%emt 0:00:21]} 11. axb3 {[%emt 0:00:01] A sharp opening} Bb7 {[%emt 0:00:13]} 12. Ba3 {[%emt 0:00:25]} Bd6 {[%emt 0:00:26]} (12... a5 13. Bxe7 Qxe7 14. Qd2 b4) 13. Nc3 $146 {[%emt 0:01:32]} (13. Nd3 Nd7 14. e4 Bxa3 15. Rxa3 N5f6 16. Nd2 Qe7 17. b4 Rac8 18. Qc3 Rfd8 19. Re1 {1-0 Dubov,D (2708)-Grischuk,A (2745) MrDodgy Online Inv Finals 3rd blitz 2022 (3.5)}) 13... Bxa3 {[%emt 0:03:26]} (13... Nxc3 14. Qxc3 Bxg2 15. Kxg2 a5) 14. Nxd5 {[%emt 0:01:13]} Bd6 {[%emt 0:00:19] A strong pair of Bishops.} 15. Nf4 {[%emt 0:05:29]} (15. Ne7+ $11 Qxe7 16. Bxb7) 15... Bxg2 $15 {[%emt 0:00:30]} 16. Kxg2 {[%emt 0:00:03]} Qc8 {[%emt 0:01:17]} 17. Qe4 {[%emt 0:00:54]} Ra7 {[%emt 0:00:08]} 18. Kg1 {[%emt 0:00:59]} c5 {[%emt 0:00:45]} (18... a5 19. Nfd3 f6 20. Nf3 Re8) 19. Rac1 {[%emt 0:01:44]} Rc7 {[%emt 0:00:19]} 20. dxc5 {[%emt 0:02:51]} Bxe5 {[%emt 0:03:24]} 21. Qxe5 {[%emt 0:00:01]} Nd7 {[%emt 0:00:01]} 22. Qe3 {[%emt 0:01:03]} Nxc5 {[%emt 0:00:13]} (22... Rxc5 $2 23. Rxc5 Qxc5 (23... Nxc5 $2 24. Rc1 $18) 24. Rxd7 $18) 23. Nh5 {[%emt 0:00:43]} f5 {[%emt 0:04:02]} (23... a5 $11 {remains equal.}) 24. Qe5 $1 $16 {[%emt 0:00:20]} Rff7 {[%emt 0:00:25][%cal Oc7c6]} 25. b4 $1 {[%emt 0:00:13] White has more active pieces.} Ne4 {[%emt 0:00:51]} (25... Nb7 $16 26. Rxc7 Qxc7 (26... Rxc7 27. Ra1 $16) 27. Qxe6 Qe7 28. Qc8+ (28. Qxa6 Qxe2 29. Rc1 Nd8 $16) 28... Qf8) 26. Rxc7 $18 {[%emt 0:00:02]} Rxc7 {[%emt 0:00:03]} (26... Qxc7 $16 27. Qxe6 g6) 27. f3 $1 {[%emt 0:00:08]} Nc3 {[%emt 0:00:18]} 28. Rd6 {[%emt 0:00:04][%cal Od6c6]} Re7 {[%emt 0:01:15] [#]} 29. Nxg7 $2 {[%emt 0:00:29]} Nxe2+ $1 $11 {[%emt 0:00:23]} (29... Rxg7 $2 30. Qf6 Nd5 (30... Nxe2+ $2 31. Kf2 $18) 31. Rd8+ $18 (31. Qxe6+ $2 Qxe6 32. Rxe6 Nxb4 $19)) 30. Kg2 {[%emt 0:00:18][%cal Rg7e6]} Qc2 {[%emt 0:00:06]} 31. Rd8+ {[%emt 0:00:07][%mdl 1024] White has compensation.} (31. Nxe6 $2 {is the wrong capture.} Nf4+ 32. Kf1 Qg2+ 33. Ke1 Rxe6 34. gxf4 Rxe5+ $19) (31. Kf1 {simplifies} Qc4 32. Kf2 Qc2 33. Qxe2 Qxe2+ 34. Kxe2 Kxg7 35. Rxa6 Kf6 36. Ra5) 31... Kf7 {[%emt 0:00:00] ...Nd4+ would now be deadly.} 32. Kf1 $40 {[%emt 0:00:17][%cal Og7h5][%mdl 128] Nh5! is the strong threat. Black needs to defend precisely.} Nc3 $2 {[%emt 0:00:19][%mdl 8192]} (32... Qc3 $11 {and Black stays safe.} 33. Qxe2 Kxg7) 33. Nh5 $18 {[%emt 0:00:02][%csl Gh5][%cal Re5g7]} Qc1+ {[%emt 0:00:11]} (33... Qe2+ $142 34. Qxe2 Nxe2 35. Kxe2 e5) 34. Kg2 {[%emt 0:00:03]} Qh6 {[%emt 0:00:20] Repels Qf6+} 35. Qh8 $1 {[%emt 0:00:41][%csl Gd8][%cal Rh8g8]} Rc7 {[%emt 0:00:12]} 36. Qe8# {[%emt 0:00:00] Weighted Error Value: White=0.23 (precise) /Black=0.53  Loses game:     	---       	Black=2      Missed win:     	White=1     	---        Mistake:       	White=1     	Black=3      Inaccurate:     	---       	Black=3      OK:         	White=4     	Black=9      Best:        	White=5     	Black=2      Strong:       	White=3     	Black=1} 1-0

[Event "Pashayeva Memorial Rapid 2025"]
[Site "Baku"]
[Date "2025.03.03"]
[Round "4.2"]
[White "Aydin, Gulenay"]
[Black "Yakubbaeva, Nilufar"]
[Result "1/2-1/2"]
[Annotator "TA"]
[ECO "B10"]
[WhiteElo "2265"]
[BlackElo "2187"]
[PlyCount "35"]
[EventDate "2025.03.01"]
[EventType "tourn"]
[EventCountry "AZE"]
[SourceTitle "playchess.com"]
[Source "ChessBase"]
[SourceQuality "1"]
[TimeControl "900+10"]

{[%evp 9,35,-4,10,-6,12,3,18,20,24,0,17,0,0,0,-1,-14,-6,-14,7,11,18,0,9,4,10,10,21,8]} 1. e4 {[%emt 0:00:10]} c6 {[%emt 0:00:04]} 2. Nf3 {[%emt 0:00:09]} d5 {[%emt 0:00:02]} 3. d3 {[%emt 0:00:02]} dxe4 {[%emt 0:00:03]} 4. dxe4 {[%emt 0:00:01]} Qxd1+ {[%emt 0:00:04]} 5. Kxd1 {[%emt 0:00:02]} Nf6 {[%emt 0:00:06]} 6. Nbd2 {[%emt 0:00:18] B10: Caro-Kann: 2 d3 and 2 c4.} g6 {[%emt 0:00:03]} 7. Ne5 {[%emt 0:00:57]} Bh6 {[%emt 0:00:17]} 8. f3 {[%emt 0:00:13]} Be6 {[%emt 0:00:04]} 9. a4 {[%emt 0:07:43]} Nfd7 {[%emt 0:00:23] The position is equal.} 10. Nxd7 {[%emt 0:01:26]} Nxd7 {[%emt 0:00:02]} 11. Nc4 {[%emt 0:00:06]} Bxc1 {[%emt 0:00:11]} 12. Kxc1 {[%emt 0:00:07]} Bxc4 $146 {[%emt 0:00:10]} (12... f6 13. Be2 Kf7 14. Kd2 g5 15. Ke3 h5 16. b4 h4 17. Rhd1 Rhc8 18. Na5 b6 {½-½ Aydin,G (2029)-Priyanka,N (2322) TUR-chT Ankara 2024 (1.35)}) 13. Bxc4 {[%emt 0:00:02]} e5 {[%emt 0:00:46]} 14. a5 {[%emt 0:00:37]} Ke7 {[%emt 0:00:13]} 15. c3 {[%emt 0:01:26]} Rhd8 {[%emt 0:00:23]} 16. Kc2 {[%emt 0:00:03]} Nc5 {[%emt 0:01:14]} 17. Rad1 {[%emt 0:02:13]} Ne6 {[%emt 0:00:18]} 18. Bxe6 {[%emt 0:00:26] A rather calm draw.   Weighted Error Value: White=0.06 (flawless) /Black=0.09 (flawless)   OK:         	White=3     	Black=3} 1/2-1/2

[Event "Pashayeva Memorial Rapid 2025"]
[Site "Baku"]
[Date "2025.03.03"]
[Round "4.3"]
[White "Mamedjarova, Turkan"]
[Black "Mammadzada, Gunay"]
[Result "0-1"]
[Annotator "TA"]
[ECO "C55"]
[WhiteElo "2197"]
[BlackElo "2412"]
[PlyCount "92"]
[EventDate "2025.03.01"]
[EventType "tourn"]
[EventCountry "AZE"]
[SourceTitle "playchess.com"]
[Source "ChessBase"]
[SourceQuality "1"]
[TimeControl "900+10"]

{[%evp 10,92,18,-132,-122,-125,-102,-165,-172,-218,-197,-210,-199,-190,-110,-114,-119,-123,-88,-76,-73,-190,-200,-295,-271,-349,-387,-366,-369,-429,-404,-287,-241,-233,-254,-207,-139,-129,-112,-128,-122,-120,-43,-74,-74,-161,-165,-355,-94,-120,-118,-155,-158,-151,-153,-183,-181,-207,-191,-283,-246,-212,-192,-303,-306,-317,-314,-810,-810,-788,-785,-759,-759,-731,-705,-1348,-1321,-4614,-4614,-4618,-1127,-2278,-2231,-1454,-1381]} 1. e4 {[%emt 0:00:03]} e5 {[%emt 0:00:01]} 2. Nc3 {[%emt 0:00:16]} Nc6 {[%emt 0:00:10]} 3. Nf3 {[%emt 0:00:18]} Nf6 {[%emt 0:00:05]} 4. Bc4 {[%emt 0:00:19]} Nxe4 {[%emt 0:01:40]} 5. Nxe4 {[%emt 0:02:23]} d5 {[%emt 0:00:02] [#]} 6. Qe2 {[%emt 0:01:40]} dxc4 $17 {[%emt 0:01:14] C55: Two Knights: 4 d3, 4 d4 exd4 5 e5 and Max Lange Attack.} (6... dxe4 $6 7. Qxe4 Bd6 8. c3 $11) 7. Qxc4 {[%emt 0:00:32]} Be7 {[%emt 0:00:42]} 8. b3 {[%emt 0:01:33]} (8. O-O $17) 8... f5 $19 {[%emt 0:02:36] Black is clearly better.} 9. Ng3 $146 {[%emt 0:02:17]} (9. Nc3) ({Predecessor:} 9. Nc3 e4 10. Nxe4 fxe4 11. Qxe4 O-O 12. Bb2 Bf6 13. O-O-O Bxb2+ 14. Kxb2 Qf6+ 15. Kb1 {0-1 Barbosa,D-Van Riemsdijk,H (2375) Sao Bernardo tt 1998 (2)}) 9... e4 {[%emt 0:00:12]} 10. Ng1 {[%emt 0:00:01]} Bf6 {[%emt 0:01:57] Dodges Bb2} 11. Rb1 {[%emt 0:00:15]} Ne5 {[%emt 0:00:13]} ({Black should play} 11... Qd6 $19 {Hoping for ...h5.} 12. Nh5 Be5) 12. Qe2 $17 {[%emt 0:01:57] Prevents h5} O-O {[%emt 0:02:01] Active counter play!} 13. Nh3 {[%emt 0:00:03]} Ng6 {[%emt 0:01:43]} 14. O-O {[%emt 0:03:50]} Be5 {[%emt 0:03:03]} 15. f4 {[%emt 0:00:30] [#]} (15. Rd1 $17) 15... exf3 $1 $19 {[%emt 0:00:08] Black attacks} 16. Qxf3 {[%emt 0:00:05]} (16. Rxf3 f4 17. Ne4) 16... f4 {[%emt 0:00:46]} 17. Ne2 {[%emt 0:00:33]} Nh4 {[%emt 0:00:23]} 18. Qe4 {[%emt 0:00:34]} Bxh3 {[%emt 0:00:19]} 19. gxh3 {[%emt 0:00:34]} Qg5+ {[%emt 0:00:26]} 20. Kh1 {[%emt 0:00:00][%cal Od2d4]} f3 {[%emt 0:00:18][%csl Gf3,Gh4][%cal Rg5g2]} 21. Qd5+ {[%emt 0:00:01]} Kh8 {[%emt 0:00:06]} 22. Ng3 {[%emt 0:00:01]} c6 {[%emt 0:00:24]} 23. d4 {[%emt 0:00:18]} Qxc1 {[%emt 0:00:19]} 24. Rbxc1 {[%emt 0:00:16]} cxd5 {[%emt 0:00:01]} 25. dxe5 {[%emt 0:00:01]} Rfe8 {[%emt 0:00:07]} (25... Rae8 $17 26. c4 Rxe5 27. cxd5 Rxd5) 26. Rce1 {[%emt 0:00:04]} Rac8 $36 {[%emt 0:00:13][%mdl 2048] Black has strong initiative.} 27. c4 {[%emt 0:00:17]} dxc4 {[%emt 0:00:13]} 28. Re4 $2 {[%emt 0:00:02] [#]} (28. bxc4 Rxc4 29. e6) 28... Ng6 $2 {[%emt 0:00:06]} (28... c3 $1 $19 {[%cal Rc3c2] is more deadly.} 29. Rxh4 c2 (29... Rxe5 30. Kg1 $11)) 29. bxc4 {[%emt 0:00:20]} Rxe5 {[%emt 0:00:14]} 30. Rxf3 {[%emt 0:00:14]} Rxe4 {[%emt 0:00:01]} 31. Nxe4 {[%emt 0:00:01]} Rxc4 $17 {[%emt 0:00:02][%mdl 4096] Endgame KRN-KRN. Black is a pawn up.} 32. Nc3 {[%emt 0:00:04]} h6 {[%emt 0:00:14]} 33. Re3 {[%emt 0:00:11]} a6 {[%emt 0:00:08]} 34. a4 {[%emt 0:00:06]} (34. Ne2 $142) 34... Nf4 $19 {[%emt 0:00:10]} 35. h4 {[%emt 0:00:26]} a5 {[%emt 0:00:23]} 36. h3 {[%emt 0:00:08]} (36. Re8+ {was called for.} Kh7 37. Re4) 36... Ng6 {[%emt 0:00:10]} 37. h5 {[%emt 0:00:20]} Nf4 {[%emt 0:00:01]} 38. Re4 $2 {[%emt 0:00:35]} (38. Kh2) 38... Rxc3 {[%emt 0:00:13] Black is clearly winning.} 39. Rxf4 {[%emt 0:00:00]} Rxh3+ {[%emt 0:00:01] KR-KR. Black is two pawns up.} 40. Kg2 {[%emt 0:00:01]} Rxh5 {[%emt 0:00:01]} 41. Rf8+ {[%emt 0:00:02]} Kh7 {[%emt 0:00:01]} 42. Rb8 {[%emt 0:00:00]} Rh4 {[%emt 0:00:11]} 43. Rxb7 {[%emt 0:00:02]} Rxa4 {[%emt 0:00:02]} 44. Kg3 {[%emt 0:00:00]} h5 {[%emt 0:00:03]} 45. Rb6 {[%emt 0:00:03]} g6 {[%emt 0:00:01]} 46. Ra6 {[%emt 0:00:02]} Kh6 {[%emt 0:00:01] Weighted Error Value: White=0.79/Black=0.35  Missed win:     	---       	Black=1      Mistake:       	White=9     	Black=2      Inaccurate:     	White=2     	Black=1      OK:         	White=9     	Black=12     Best:        	White=4     	Black=6      Strong:       	---       	Black=1} 0-1

[Event "Pashayeva Memorial Rapid 2025"]
[Site "Baku"]
[Date "2025.03.03"]
[Round "4.4"]
[White "Balajayeva, Khanim"]
[Black "Beydullayeva, Govhar"]
[Result "1/2-1/2"]
[Annotator "TA"]
[ECO "C91"]
[WhiteElo "2355"]
[BlackElo "2404"]
[PlyCount "53"]
[EventDate "2025.03.01"]
[EventType "tourn"]
[EventCountry "AZE"]
[SourceTitle "playchess.com"]
[Source "ChessBase"]
[SourceQuality "1"]
[TimeControl "900+10"]

{[%evp 28,53,33,25,27,13,16,8,16,0,-3,0,14,0,0,0,0,5,6,3,3,0,0,0,0,0,0,-6]} 1. e4 {[%emt 0:00:03]} e5 {[%emt 0:00:01]} 2. Nf3 {[%emt 0:00:03]} Nc6 {[%emt 0:00:01]} 3. Bb5 {[%emt 0:00:03][%cal Bf1b5,Bb5a4,Ba4b3][%mdl 32]} a6 {[%emt 0:00:00]} 4. Ba4 {[%emt 0:00:04]} Nf6 {[%emt 0:00:17]} 5. O-O {[%emt 0:00:35]} Be7 {[%emt 0:00:12]} 6. Re1 {[%emt 0:00:28]} b5 {[%emt 0:00:22]} 7. Bb3 {[%emt 0:00:01]} d6 {[%emt 0:01:12]} 8. c3 {[%emt 0:00:30][%cal Bc2c3,Bc3d4][%mdl 32]} O-O {[%emt 0:00:31]} 9. d4 {[%emt 0:01:01]} Bg4 {[%emt 0:01:45]} 10. Be3 {[%emt 0:00:33]} exd4 {[%emt 0:00:25]} 11. cxd4 {[%emt 0:00:05]} Na5 {[%emt 0:00:02][%cal Bc6a5,Ba5c4,Bc4b6,Bb6d7,Bd7e5,Be5f3][%mdl 32]} 12. Bc2 {[%emt 0:00:23]} Nc4 {[%emt 0:00:29]} 13. Bc1 {[%emt 0:00:20][%cal Be3c1,Bc1b2,Bb2d4][%mdl 32]} c5 {[%emt 0:00:31]} 14. b3 {[%emt 0:01:00]} Nb6 {[%emt 0:00:08]} 15. Nbd2 {[%emt 0:00:41]} cxd4 {[%emt 0:01:17] C91: Closed Ruy Lopez: 7...d6 8 c3 0-0 9 d4.} 16. h3 {[%emt 0:00:53] White sacrificed a pawn} Bh5 {[%emt 0:00:02] The position is equal.} 17. Bb2 {[%emt 0:01:01][%cal Og2g4]} Rc8 {[%emt 0:01:19]} 18. Bxd4 {[%emt 0:00:31]} Nbd7 {[%emt 0:00:44]} 19. Rc1 {[%emt 0:00:41]} Ne5 {[%emt 0:00:37]} 20. Bb1 $146 {[%emt 0:01:49]} (20. Qe2 Nfd7 21. Bb1 Bf6 22. g4 Bg6 23. Nxe5 dxe5 24. Rxc8 Qxc8 25. Bb2 Bg5 26. Nf1 {1-0 Leventic,I (2325)-Brenjo,S Pula tt2 1990 (11)}) 20... Rxc1 {[%emt 0:01:02]} 21. Qxc1 {[%emt 0:00:02]} Nxf3+ {[%emt 0:00:04]} 22. Nxf3 {[%emt 0:00:06]} Bxf3 {[%emt 0:00:06]} 23. gxf3 {[%emt 0:00:01]} d5 {[%emt 0:01:04]} 24. e5 {[%emt 0:00:55]} Nh5 {[%emt 0:00:21]} 25. Bf5 {[%emt 0:00:51]} g6 {[%emt 0:00:28]} 26. Bg4 {[%emt 0:00:02] [#] Hoping for Bxh5. This pair of bishops is nice.} Bg5 {[%emt 0:00:20]} 27. Be3 {[%emt 0:01:02] Not much happened in this game.   Weighted Error Value: White=0.04 (flawless) /Black=0.01 (flawless)   OK:         	White=4     	Black=9} 1/2-1/2

[Event "Pashayeva Memorial Rapid 2025"]
[Site "Baku"]
[Date "2025.03.03"]
[Round "4.5"]
[White "Mammadova, Gulnar"]
[Black "Serikbay, Assel"]
[Result "0-1"]
[Annotator "RC"]
[ECO "B51"]
[WhiteElo "2333"]
[BlackElo "2216"]
[PlyCount "104"]
[EventDate "2025.03.01"]
[EventType "tourn"]
[EventCountry "AZE"]
[SourceTitle "playchess.com"]
[Source "ChessBase"]
[SourceQuality "1"]
[TimeControl "900+10"]

1. e4 {[%emt 0:00:02]} c5 {[%emt 0:00:01]} 2. Nf3 {[%emt 0:00:02]} d6 {[%emt 0:00:02]} 3. Bb5+ {[%emt 0:00:03]} Nd7 {[%emt 0:00:03]} 4. O-O {[%emt 0:00:04]} a6 {[%emt 0:00:07]} 5. Bd3 {[%emt 0:00:04]} Ngf6 {[%emt 0:00:23]} 6. Re1 {[%emt 0:00:02]} b5 {[%emt 0:01:03]} 7. c4 {[%emt 0:00:17]} b4 {[%emt 0:00:29]} 8. a3 {[%emt 0:00:05]} bxa3 {[%emt 0:00:29]} 9. Rxa3 {[%emt 0:00:14]} e5 {[%emt 0:02:22]} 10. Nc3 {[%emt 0:00:43]} Be7 {[%emt 0:00:10]} 11. Bf1 {[%emt 0:01:26]} O-O {[%emt 0:00:07]} 12. d3 {[%emt 0:00:02]} Nb8 {[%emt 0:00:36]} 13. Nd5 {[%emt 0:01:01]} Nc6 {[%emt 0:00:47]} 14. Bd2 {[%emt 0:00:30]} Bg4 {[%emt 0:00:41]} 15. Qa4 {[%emt 0:01:20]} Bd7 {[%emt 0:01:40]} 16. h3 {[%emt 0:01:15]} Nxd5 {[%emt 0:00:50]} 17. exd5 {[%emt 0:00:31]} Nd4 {[%emt 0:00:10]} 18. Qd1 {[%emt 0:00:01]} Nxf3+ {[%emt 0:00:12]} 19. Qxf3 {[%emt 0:00:02]} f5 {[%emt 0:01:08]} 20. b4 {[%emt 0:00:27]} cxb4 {[%emt 0:00:03]} 21. Bxb4 {[%emt 0:00:02]} Qb6 {[%emt 0:01:58]} 22. Ba5 {[%emt 0:01:03]} Qc5 {[%emt 0:00:28]} 23. Rea1 {[%emt 0:01:16]} Bf6 {[%emt 0:00:01]} 24. Qe3 {[%emt 0:00:17]} Qc8 {[%emt 0:02:34]} 25. Bb4 {[%emt 0:00:32]} Qb8 {[%emt 0:00:54]} 26. Bc3 {[%emt 0:00:03]} f4 {[%emt 0:00:20]} 27. Qc1 {[%emt 0:00:53]} f3 {[%emt 0:00:01]} 28. Rxa6 {[%emt 0:01:50]} Rxa6 {[%emt 0:00:02]} 29. Rxa6 {[%emt 0:00:02]} fxg2 {[%emt 0:00:01]} 30. Bxg2 {[%emt 0:00:01]} Bh4 {[%emt 0:00:07]} 31. Ra2 {[%emt 0:00:48]} Qc8 {[%emt 0:00:49]} 32. Qe3 {[%emt 0:00:45]} h6 {[%emt 0:00:01]} 33. Bb4 {[%emt 0:01:26]} Bg5 {[%emt 0:00:03]} 34. Qg3 {[%emt 0:01:29]} Bf4 {[%emt 0:00:06]} 35. Qh4 {[%emt 0:00:04]} Qb8 {[%emt 0:00:47]} 36. Rb2 {[%emt 0:00:21]} Bc1 {[%emt 0:00:06]} 37. Rb1 {[%emt 0:00:04]} Bg5 {[%emt 0:00:02]} 38. Qh5 {[%emt 0:01:07]} Bd2 {[%emt 0:00:27]} 39. Qd1 {[%emt 0:00:40]} Bxb4 {[%emt 0:00:03]} 40. Qb3 {[%emt 0:00:01]} Qa7 {[%emt 0:00:07]} 41. Qxb4 {[%emt 0:00:01]} Qxf2+ {[%emt 0:00:02]} 42. Kh1 {[%emt 0:00:16]} Qg3 {[%emt 0:00:02]} 43. Qe1 {[%emt 0:00:38]} Rf2 {[%emt 0:00:20]} 44. Qe4 {[%emt 0:00:19]} Bf5 {[%emt 0:00:15]} 45. Rb8+ {[%emt 0:00:12]} Kh7 {[%emt 0:00:01]} 46. Qxf5+ {[%emt 0:00:12]} Rxf5 {[%emt 0:00:01]} 47. Be4 {[%emt 0:00:00]} Qxh3+ {[%emt 0:00:11]} 48. Kg1 {[%emt 0:00:01]} Qg3+ {[%emt 0:00:05]} 49. Kh1 {[%emt 0:00:01]} Qh4+ {[%emt 0:00:33]} 50. Kg2 {[%emt 0:00:03]} Qg5+ {[%emt 0:00:03]} 51. Kh2 {[%emt 0:00:02]} Qh5+ {[%emt 0:00:04]} 52. Kg2 {[%emt 0:00:01]} Qg6+ {[%emt 0:00:05]} 0-1

[Event "Pashayeva Memorial Rapid 2025"]
[Site "Baku"]
[Date "2025.03.03"]
[Round "5.1"]
[White "Serikbay, Assel"]
[Black "Salimova, Nurgyul"]
[Result "1/2-1/2"]
[Annotator "TA"]
[ECO "D40"]
[WhiteElo "2216"]
[BlackElo "2404"]
[PlyCount "78"]
[EventDate "2025.03.01"]
[EventType "tourn"]
[EventCountry "AZE"]
[SourceTitle "playchess.com"]
[Source "ChessBase"]
[SourceQuality "1"]
[TimeControl "900+10"]

{[%evp 16,78,-2,-20,-2,-22,-29,-45,-37,-30,-20,-25,-16,-43,-28,-94,-24,-16,-21,-20,-19,-21,-13,-79,-92,-92,-95,-96,-100,-97,-39,-108,-13,-2,0,0,0,0,0,-10,0,0,0,0,7,1,2,1,1,0,0,0,0,0,15,0,0,8,8,8,8,0,0,0,0]} 1. d4 {[%emt 0:00:02]} d5 {[%emt 0:00:04]} 2. Nf3 {[%emt 0:00:03]} c5 {[%emt 0:00:02]} 3. e3 {[%emt 0:00:16]} Nc6 {[%emt 0:00:27]} 4. c4 {[%emt 0:00:25]} e6 {[%emt 0:00:52]} 5. Nc3 {[%emt 0:00:11]} Nf6 {[%emt 0:00:07]} 6. Bd3 {[%emt 0:00:43]} a6 {[%emt 0:00:16]} 7. O-O {[%emt 0:01:40]} dxc4 {[%emt 0:00:11]} 8. Bxc4 {[%emt 0:00:02]} b5 {[%emt 0:00:09]} 9. Bb3 {[%emt 0:00:23]} Bb7 {[%emt 0:00:34] D40: Queen's Gambit Declined: Semi-Tarrasch with 5 e3.} 10. dxc5 {[%emt 0:02:29]} Bxc5 {[%emt 0:00:35]} 11. Qe2 {[%emt 0:00:14]} O-O {[%emt 0:00:18] Black is slightly better.} (11... Qc7 {seems wilder.} 12. e4 Ng4 13. g3 O-O) 12. e4 {[%emt 0:00:45]} Nd7 $146 {[%emt 0:08:13][%cal Bf6d7,Bd7c5,Bc5d3][%mdl 32]} (12... Nd4 13. Nxd4 Bxd4 14. Bc2 e5 15. Bg5 Qb6 16. Rfd1 Rac8 17. Qf3 b4 18. Na4 Qd6 {½-½ Samantila,D (1770)-Mousavi,S (2216) Asia-ch U14 Hikkaduwa 2012 (4.2)}) 13. Be3 {[%emt 0:01:14]} Qe7 {[%emt 0:01:30]} 14. Rac1 {[%emt 0:00:26]} Rfd8 {[%emt 0:00:38]} 15. Bg5 {[%emt 0:00:45]} (15. Bxc5 $11 Nxc5 16. Rfd1) 15... f6 {[%emt 0:00:04]} ({Black should play} 15... Nd4 $1 $17 {[%cal Rd4e2]} 16. Qd2 Nxf3+ 17. gxf3 f6) 16. Be3 $11 {[%emt 0:00:34]} Na5 {[%emt 0:00:49]} 17. Bxc5 {[%emt 0:00:25]} Nxc5 {[%emt 0:00:02]} 18. Bc2 {[%emt 0:00:04] [#]} Nc4 {[%emt 0:00:12]} 19. b3 {[%emt 0:02:13]} (19. Bb1 $11 {keeps the balance.}) 19... Na3 $17 {[%emt 0:00:15]} 20. b4 {[%emt 0:01:12]} Nxc2 {[%emt 0:00:08]} 21. Rxc2 {[%emt 0:00:29]} Nd3 {[%emt 0:00:14]} 22. a3 {[%emt 0:00:01] [#]} Rac8 {[%emt 0:00:27]} (22... Nf4 $1 $17 {[%cal Rf4e2]} 23. Qe3 Qc7) 23. g3 {[%emt 0:01:11]} (23. Rd1 $15 Nf4 24. Rxd8+ Qxd8 (24... Rxd8 25. Qe3 $15) 25. Qe3) 23... Qc7 {[%emt 0:00:47]} (23... Qd7 $17 24. Rb1 h6) 24. Rd1 $11 {[%emt 0:01:00] The position is equal.} Ne5 {[%emt 0:00:19] ...Rxd1+ would now be deadly.} 25. Rxd8+ {[%emt 0:00:44]} Rxd8 {[%emt 0:00:02][%cal Bc8d8,Bd8d4,Bd4c4][%mdl 32]} 26. Nxe5 {[%emt 0:00:06]} Qxe5 {[%emt 0:00:06]} 27. Qe3 {[%emt 0:00:12]} Qd4 {[%emt 0:00:37]} 28. Qxd4 {[%emt 0:00:29]} Rxd4 {[%emt 0:00:01][%mdl 4096] Endgame KRB-KRN} 29. f3 {[%emt 0:00:04]} Rc4 {[%emt 0:00:41]} 30. Kf2 {[%emt 0:00:01]} Kf7 {[%emt 0:00:27]} 31. Rc1 {[%emt 0:00:06]} g5 {[%emt 0:00:39]} 32. h3 {[%emt 0:01:30]} h5 {[%emt 0:00:03]} 33. Ne2 {[%emt 0:00:07]} Rxc1 {[%emt 0:00:05]} 34. Nxc1 {[%emt 0:00:01] KB-KN} g4 {[%emt 0:00:21]} 35. hxg4 {[%emt 0:00:01]} hxg4 {[%emt 0:00:01]} 36. Nb3 {[%emt 0:00:16] and Nc5 should not be overlooked} gxf3 {[%emt 0:00:15]} 37. Nc5 {[%emt 0:00:08]} Bc8 {[%emt 0:00:25]} 38. Kxf3 {[%emt 0:00:02]} e5 {[%emt 0:00:16]} 39. Nd3 {[%emt 0:00:14]} Kg6 {[%emt 0:00:11] Weighted Error Value: White=0.13 (very precise) /Black=0.17 (very precise)   Mistake:       	White=3     	Black=3      Inaccurate:     	White=1     	---        OK:         	White=12    	Black=8      Best:        	White=3     	Black=2} 1/2-1/2

[Event "Pashayeva Memorial Rapid 2025"]
[Site "Baku"]
[Date "2025.03.03"]
[Round "5.3"]
[White "Mammadzada, Gunay"]
[Black "Balajayeva, Khanim"]
[Result "1/2-1/2"]
[Annotator "TA"]
[ECO "C50"]
[WhiteElo "2412"]
[BlackElo "2355"]
[PlyCount "37"]
[EventDate "2025.03.01"]
[EventType "tourn"]
[EventCountry "AZE"]
[SourceTitle "playchess.com"]
[Source "ChessBase"]
[SourceQuality "1"]
[TimeControl "900+10"]

{[%evp 14,20,0,-27,-27,-27,-39,-27,-27]} 1. e4 {[%emt 0:00:03]} e5 {[%emt 0:00:02]} 2. Nf3 {[%emt 0:00:02]} Nc6 {[%emt 0:00:02]} 3. Bc4 {[%emt 0:00:24]} Nf6 {[%emt 0:00:04]} 4. d3 {[%emt 0:00:01]} Bc5 {[%emt 0:00:05]} 5. Nc3 {[%emt 0:00:12]} h6 {[%emt 0:00:11]} 6. Be3 {[%emt 0:00:29]} Bxe3 {[%emt 0:00:46]} 7. fxe3 {[%emt 0:00:02]} d6 {[%emt 0:00:11]} 8. h3 {[%emt 0:00:05]} Na5 {[%emt 0:01:19] C50: Hungarian Defence and Giuoco Pianissimo.} 9. Bb5+ {[%emt 0:00:55]} c6 {[%emt 0:00:18]} 10. Ba4 {[%emt 0:00:08]} b5 {[%emt 0:00:02] Weighted Error Value: White=0.08 (flawless) /Black=0.00 (flawless)   OK:         	White=1     	Black=2} 11. Bb3 $146 Nxb3 12. axb3 O-O 13. O-O Nh7 14. Ne2 Ng5 15. Ng3 f5 16. exf5 Bxf5 17. Nxe5 Bxh3 18. Rxf8+ Qxf8 19. Nxc6 {1-0 Molano,W (1764)-Garcia Urruchurto,H (1425) COL-ch sf Santa Rosa 2021 (5)} 1/2-1/2